fUSD/lending_fUSD_20250515
["ID","MTS","AMOUNT","RATE_DAILY","PERIOD"]
[361153825,1747310806700,-609.13,0.00011597,2]
[361153826,1747310806725,-400.0,0.00011597,2]
[361153827,1747310806750,-400.0,0.00011597,2]
[361153828,1747310806781,-400.0,0.00011597,2]
[361153829,1747310806806,-766.84,0.00011597,2]
[361153830,1747310806831,-416.59,0.00011597,2]
[361153831,1747310806854,-400.0,0.00011597,2]
[361153832,1747310806878,-400.0,0.00011597,2]
[361153833,1747310806901,-428.54,0.00011597,2]
[361153834,1747310806926,-400.0,0.00011597,2]
[361153835,1747310806950,-326.79426023,0.00011597,2]
[361153836,1747310806973,-400.0,0.00011597,2]
[361153837,1747310806996,-400.0,0.00011597,2]
[361153838,1747310807020,-400.0,0.00011597,2]
[361153839,1747310807046,-400.0,0.00011597,2]
[361153840,1747310807076,-400.0,0.00011597,2]
[361153841,1747310807104,-400.0,0.00011597,2]
[361153842,1747310807128,-400.0,0.00011597,2]
[361153843,1747310807152,-400.0,0.00011597,2]
[361153844,1747310807176,-400.0,0.00011597,2]
[361153845,1747310807200,-491.81,0.00011597,2]
[361153846,1747310807225,-400.0,0.00011597,2]
[361153847,1747310807248,-400.0,0.00011597,2]
[361153848,1747310807272,-400.0,0.00011597,2]
[361153849,1747310807298,-400.0,0.00011597,2]
[361153850,1747310807322,-427.27,0.00011597,2]
[361153851,1747310807345,-400.0,0.00011597,2]
[361153852,1747310807368,-400.0,0.00011597,2]
[361153853,1747310807392,-414.52,0.00011597,2]
[361153854,1747310807416,-400.0,0.00011597,2]
[361153855,1747310807441,-400.0,0.00011597,2]
[361153856,1747310807467,-500.0,0.00011597,2]
[361153857,1747310807490,-400.0,0.00011597,2]
[361153858,1747310807514,-400.0,0.00011597,2]
[361153859,1747310807540,-400.0,0.00011597,2]
[361153860,1747310807565,-400.0,0.00011597,2]
[361153861,1747310807590,-400.0,0.00011597,2]
[361153862,1747310807615,-400.0,0.00011597,2]
[361153863,1747310807640,-754.4,0.00011597,2]
[361153864,1747310807664,-400.0,0.00011597,2]
[361153865,1747310807687,-243.60496239,0.00011597,2]
[361153866,1747310807716,-400.0,0.00011597,2]
[361153867,1747310807742,-718.53,0.00011597,2]
[361153868,1747310807767,-400.0,0.00011597,2]
[361153869,1747310807793,-489.19,0.00011597,2]
[361153870,1747310807816,-400.0,0.00011597,2]
[361153871,1747310807840,-400.0,0.00011597,2]
[361153872,1747310807863,-400.0,0.00011597,2]
[361153873,1747310807886,-400.0,0.00011597,2]
[361153874,1747310807910,-875.0,0.00011597,2]
[361153875,1747310807934,-464.21318811,0.00011597,2]
[361153876,1747310807963,-400.0,0.00011597,2]
[361153877,1747310807987,-497.21,0.00011597,2]
[361153878,1747310808011,-2759.4577626,0.00011597,2]
[361153879,1747310808131,-4008.9922374,0.00011597,2]
[361153880,1747310808156,-1447.72,0.00011597,2]
[361153881,1747310808179,-400.0,0.00011597,2]
[361153882,1747310808204,-483.44,0.00011597,2]
[361153883,1747310808227,-478.96,0.00011597,2]
[361153884,1747310808251,-405.48,0.00011597,2]
[361153885,1747310808281,-1619.32,0.00011597,2]
[361153886,1747310808305,-569.56,0.00011597,2]
[361153887,1747310808328,-880.29,0.00011597,2]
[361153888,1747310808352,-400.0,0.00011597,2]
[361153889,1747310808375,-400.0,0.00011597,2]
[361153890,1747310808400,-516.16,0.00011597,2]
[361153891,1747310808422,-400.0,0.00011597,2]
[361153892,1747310808447,-421.3,0.00011597,2]
[361153893,1747310808471,-567.68,0.00011597,2]
[361153894,1747310808495,-400.0,0.00011597,2]
[361153895,1747310808518,-400.0,0.00011597,2]
[361153896,1747310808541,-400.0,0.00011597,2]
[361153897,1747310808567,-1067.51,0.00011597,2]
[361153898,1747310808596,-400.0,0.00011597,2]
[361153899,1747310808621,-860.84,0.00011597,2]
[361153900,1747310808645,-400.0,0.00011597,2]
[361153901,1747310808670,-464.01,0.00011597,2]
[361153902,1747310808696,-961.38,0.00011597,2]
[361153903,1747310808723,-694.85,0.00011597,2]
[361153904,1747310808747,-545.1755787,0.00011597,2]
[361153905,1747310808774,-400.0,0.00011597,2]
[361153906,1747310808800,-400.0,0.00011597,2]
[361153907,1747310808822,-400.0,0.00011597,2]
[361153908,1747310808845,-564.33,0.00011597,2]
[361153909,1747310808868,-400.0,0.00011597,2]
[361153910,1747310808891,-400.0,0.00011597,2]
[361153911,1747310808914,-420.87,0.00011597,2]
[361153912,1747310808936,-476.0387701,0.00011597,2]
[361153913,1747310808959,-400.0,0.00011597,2]
[361153914,1747310808982,-400.0,0.00011597,2]
[361153915,1747310809006,-963.86,0.00011597,2]
[361153916,1747310809030,-649.11,0.00011597,2]
[361153917,1747310809054,-400.0,0.00011597,2]
[361153918,1747310809078,-792.24,0.00011597,2]
[361153919,1747310809102,-400.0,0.00011597,2]
[361153920,1747310809126,-400.0,0.00011597,2]
[361153921,1747310809440,-400.0,0.00011597,2]
[361153922,1747310809505,-868.25,0.00011597,2]
[361153923,1747310809530,-680.74,0.00011597,2]
[361153924,1747310809553,-503.78202236,0.00011597,2]
[361153925,1747310809577,-3638.78,0.00011597,2]
[361153926,1747310809600,-400.0,0.00011597,2]
[361153927,1747310809624,-400.0,0.00011597,2]
[361153928,1747310809648,-464.13,0.00011597,2]
[361153929,1747310809672,-151.0,0.00011597,2]
[361153930,1747310809698,-3605.18,0.00011597,2]
[361153931,1747310809721,-411.84,0.00011597,2]
[361153932,1747310809744,-170.88710929,0.00011597,2]
[361153933,1747310809767,-1552.15,0.00011597,2]
[361153934,1747310809792,-676.08,0.00011597,2]
[361153935,1747310809815,-1043.01,0.00011597,2]
[361153936,1747310809838,-151.0,0.00011597,2]
[361153937,1747310809863,-490.57,0.00011597,2]
[361153938,1747310809885,-151.0,0.00011597,2]
[361153939,1747310809908,-400.0,0.00011597,2]
[361153940,1747310809931,-500.0,0.00011597,2]
[361153941,1747310809957,-427.07,0.00011597,2]
[361153942,1747310809982,-151.0,0.00011597,2]
[361153943,1747310810005,-2014.94,0.00011597,2]
[361153944,1747310810031,-1014.23419445,0.00011597,2]
[361153945,1747310810055,-400.0,0.00011597,2]
[361153946,1747310810079,-400.0,0.00011597,2]
[361153947,1747310810102,-1499.58,0.00011597,2]
[361153948,1747310810126,-986.15,0.00011597,2]
[361153949,1747310810151,-3578.15,0.00011597,2]
[361153950,1747310810175,-400.0,0.00011597,2]
[361153951,1747310810198,-615.0,0.00011597,2]
[361153952,1747310810224,-9674.51,0.00011597,2]
[361153953,1747310810249,-400.0,0.00011597,2]
[361153954,1747310810275,-556.95,0.00011597,2]
[361153955,1747310810304,-3507.42,0.00011597,2]
[361153956,1747310810328,-400.0,0.00011597,2]
[361153957,1747310810353,-400.0,0.00011597,2]
[361153958,1747310810378,-5417.48,0.00011597,2]
[361153959,1747310810402,-400.0,0.00011597,2]
[361153960,1747310810426,-529.35,0.00011597,2]
[361153961,1747310810451,-812.963722,0.00011598,2]
[361153962,1747310810475,-812.963722,0.00011598,2]
[361153963,1747310810499,-153.411942,0.00011598,2]
[361153964,1747310810524,-400.0,0.00011598,2]
[361153965,1747310810552,-422.12327628,0.00011598,2]
[361153966,1747310810577,-400.0,0.00011598,2]
[361153967,1747310810602,-581.55,0.00011598,2]
[361153968,1747310810626,-400.0,0.00011598,2]
[361153969,1747310810654,-460.85,0.00011598,2]
[361153970,1747310810679,-400.0,0.00011598,2]
[361153971,1747310810706,-400.0,0.00011598,2]
[361153972,1747310810731,-151.0,0.00011598,2]
[361153973,1747310810754,-151.0,0.00011598,2]
[361153974,1747310810780,-151.0,0.00011598,2]
[361153975,1747310810811,-151.0,0.00011598,2]
[361153976,1747310810837,-151.0,0.00011598,2]
[361153977,1747310810864,-151.0,0.00011598,2]
[361153978,1747310810890,-812.963722,0.00011599,2]
[361153979,1747310810916,-812.963722,0.00011599,2]
[361153980,1747310810943,-6094.13634497,0.00011602,2]
[361153981,1747310810968,-176.44925949,0.00011636,2]
[361153982,1747310810992,-2277.924,0.00011636,2]
[361153983,1747310811015,-154.0,0.00011651,2]
[361153984,1747310811039,-4035.0,0.00011651,2]
[361153985,1747310811061,-798.0,0.00011651,2]
[361153986,1747310811085,-391.825,0.00011651,2]
[361153987,1747310811108,-918.0,0.00011651,2]
[361153988,1747310811133,-489.52537696,0.00011651,2]
[361153989,1747310811648,-657.47462304,0.00011651,2]
[361153990,1747310811672,-5941.0,0.00011651,2]
[361153991,1747310811701,-3242.99665091,0.0001167,2]
[361153992,1747310811725,-158.72,0.00011674,2]
[361153993,1747310811751,-151.0,0.00011684,2]
[361153994,1747310811777,-151.0,0.00011684,2]
[361153995,1747310811805,-151.0,0.00011684,2]
[361153996,1747310811830,-252.76438432,0.00011684,2]
[361153997,1747310811857,-151.0,0.00011684,2]
[361153998,1747310811883,-14208.818,0.00011684,2]
[361153999,1747310811906,-941.699,0.00011702,2]
[361154000,1747310811934,-6094.13634491,0.00011742,2]
[361154001,1747310811957,-183.5562355,0.00011772,2]
[361154002,1747310811986,-158.72,0.00011773,2]
[361154003,1747310812009,-400.0,0.00011783,2]
[361154004,1747310812034,-400.0,0.00011783,2]
[361154005,1747310812058,-400.0,0.00011783,2]
[361154006,1747310812082,-400.0,0.00011783,2]
[361154007,1747310812105,-400.0,0.00011783,2]
[361154008,1747310812130,-400.0,0.00011783,2]
[361154009,1747310812154,-400.0,0.00011783,2]
[361154010,1747310812176,-150.8842483,0.00011783,2]
[361154011,1747310812199,-400.0,0.00011783,2]
[361154012,1747310812222,-400.0,0.00011783,2]
[361154013,1747310812244,-225.17138847,0.00011783,2]
[361154014,1747310812267,-400.0,0.00011783,2]
[361154015,1747310812291,-400.0,0.00011783,2]
[361154016,1747310812313,-400.48229603,0.00011783,2]
[361154017,1747310812336,-670.25,0.00011783,2]
[361154018,1747310812362,-400.0,0.00011783,2]
[361154019,1747310812386,-151.0,0.00011783,2]
[361154020,1747310812410,-151.0,0.00011783,2]
[361154021,1747310812432,-908.96,0.00011783,2]
[361154022,1747310812458,-151.0,0.00011783,2]
[361154023,1747310812483,-151.0,0.00011783,2]
[361154024,1747310812507,-180.1996,0.00011783,2]
[361154025,1747310812530,-859.47,0.00011783,2]
[361154026,1747310812554,-400.0,0.00011783,2]
[361154027,1747310812578,-400.0,0.00011783,2]
[361154028,1747310812602,-501.33,0.00011783,2]
[361154029,1747310812627,-400.0,0.00011783,2]
[361154030,1747310812654,-2614.64,0.00011783,2]
[361154031,1747310812679,-1046.83,0.00011783,2]
[361154032,1747310812704,-400.0,0.00011783,2]
[361154033,1747310812729,-400.0,0.00011783,2]
[361154034,1747310812754,-400.0,0.00011783,2]
[361154035,1747310812779,-568.64,0.00011783,2]
[361154036,1747310812806,-976.74,0.00011783,2]
[361154037,1747310812829,-400.0,0.00011783,2]
[361154038,1747310812852,-400.0,0.00011783,2]
[361154039,1747310812875,-151.0,0.00011783,2]
[361154040,1747310812900,-981.95,0.00011783,2]
[361154041,1747310812923,-2360.31,0.00011783,2]
[361154042,1747310812949,-500.0,0.00011783,2]
[361154043,1747310812972,-1000.0,0.00011783,2]
[361154044,1747310812996,-151.0,0.00011783,2]
[361154045,1747310813019,-151.0,0.00011783,2]
[361154046,1747310813042,-400.0,0.00011783,2]
[361154047,1747310813068,-400.0,0.00011783,2]
[361154048,1747310813093,-151.0,0.00011783,2]
[361154049,1747310813117,-1793.02,0.00011783,2]
[361154050,1747310813142,-400.0,0.00011783,2]
[361154051,1747310813165,-560.23,0.00011783,2]
[361154052,1747310813190,-400.0,0.00011783,2]
[361154053,1747310813215,-2122.17,0.00011783,2]
[361154054,1747310813240,-400.0,0.00011783,2]
[361154055,1747310813264,-400.0,0.00011783,2]
[361154056,1747310813287,-400.0,0.00011783,2]
[361154057,1747310813312,-37126.83722852,0.00011784,2]
[361154058,1747310814620,-400.0,0.00011596,2]
[361154059,1747310814646,-400.0,0.00011596,2]
[361154060,1747310814670,-151.0,0.00011597,2]
[361154061,1747310814697,-80847.00046573,0.00011784,2]
[361154062,1747310814722,-812.963722,0.00011784,2]
[361154063,1747310814747,-812.963722,0.00011784,2]
[361154064,1747310814771,-151.0,0.00011784,2]
[361154065,1747310814800,-151.0,0.00011784,2]
[361154066,1747310814823,-151.0,0.00011784,2]
[361154067,1747310814847,-151.0,0.00011784,2]
[361154068,1747310814871,-151.0,0.00011784,2]
[361154069,1747310814896,-151.0,0.00011784,2]
[361154070,1747310814921,-151.0,0.00011784,2]
[361154071,1747310814945,-151.0,0.00011784,2]
[361154072,1747310814969,-151.0,0.00011784,2]
[361154073,1747310814994,-151.0,0.00011784,2]
[361154074,1747310815019,-151.0,0.00011784,2]
[361154075,1747310815044,-151.0,0.00011784,2]
[361154076,1747310815067,-157.124021,0.00011784,2]
[361154077,1747310815092,-14606.94806927,0.00011784,2]
[361154078,1747310816447,-416.77,0.00011596,2]
[361154079,1747310816471,-400.0,0.00011596,2]
[361154080,1747310816496,-673.13,0.00011596,2]
[361154081,1747310816521,-400.0,0.00011596,2]
[361154082,1747310816548,-577.88,0.00011597,2]
[361154083,1747310816578,-5541.90780303,0.00011784,2]
[361154084,1747310816606,-7061.9871097,0.00011784,2]
[361154085,1747310816633,-151.0,0.00011784,2]
[361154086,1747310816659,-151.0,0.00011784,2]
[361154087,1747310816683,-151.0,0.00011784,2]
[361154088,1747310816712,-84475.32508727,0.00011784,2]
[361154089,1747310816852,-53388.01641263,0.00011784,2]
[361154090,1747310816877,-46611.98358737,0.00011784,2]
[361154091,1747310818492,-544.03,0.00011783,2]
[361154092,1747310818518,-36008.21336593,0.00011784,2]
[361154093,1747310818546,-155.781958,0.00011784,2]
[361154094,1747310818572,-151.0,0.00011784,2]
[361154095,1747310818598,-151.0,0.00011784,2]
[361154096,1747310818622,-151.0,0.00011784,2]
[361154097,1747310818646,-154.345895,0.00011784,2]
[361154098,1747310818950,-151.0,0.00011784,2]
[361154099,1747310818975,-151.0,0.00011784,2]
[361154100,1747310818998,-252.76438432,0.00011786,2]
[361154101,1747310819021,-1043.10342138,0.0001179,3]
[361154102,1747310819045,-151.0,0.0001179,2]
[361154103,1747310819068,-151.0,0.0001179,2]
[361154104,1747310819092,-151.0,0.00011791,2]
[361154105,1747310819118,-151.0,0.00011791,2]
[361154106,1747310819142,-151.0,0.00011791,2]
[361154107,1747310819165,-151.0,0.00011791,2]
[361154108,1747310819189,-158.857446,0.00011791,2]
[361154109,1747310819212,-151.0,0.00011791,2]
[361154110,1747310819237,-151.0,0.00011791,2]
[361154111,1747310819261,-151.0,0.00011791,2]
[361154112,1747310819285,-217.918722,0.00011791,2]
[361154113,1747310819320,-217.918722,0.00011791,2]
[361154114,1747310819346,-217.918722,0.00011791,2]
[361154115,1747310819370,-217.918722,0.00011791,2]
[361154116,1747310819394,-217.918722,0.00011791,2]
[361154117,1747310819418,-217.918722,0.00011791,2]
[361154118,1747310819440,-290.192382,0.00011791,2]
[361154119,1747310819463,-290.192382,0.00011791,2]
[361154120,1747310819488,-290.192382,0.00011791,2]
[361154121,1747310819513,-290.192382,0.00011791,2]
[361154122,1747310819539,-290.192382,0.00011791,2]
[361154123,1747310819563,-290.192382,0.00011791,2]
[361154124,1747310819587,-151.0,0.00011791,2]
[361154125,1747310819612,-151.0,0.00011791,2]
[361154126,1747310819635,-151.0,0.00011791,2]
[361154127,1747310819660,-500.0,0.00011791,2]
[361154128,1747310819686,-500.0,0.00011791,2]
[361154129,1747310819713,-151.0,0.00011792,2]
[361154130,1747310819737,-151.0,0.00011792,2]
[361154131,1747310819761,-151.0,0.00011792,2]
[361154132,1747310819789,-151.0,0.00011792,2]
[361154133,1747310819813,-151.0,0.00011792,2]
[361154134,1747310819837,-151.0,0.00011792,2]
[361154135,1747310819865,-151.0,0.00011792,2]
[361154136,1747310819894,-296.448947,0.00011792,2]
[361154137,1747310819918,-151.0,0.00011792,2]
[361154138,1747310819941,-151.0,0.00011792,2]
[361154139,1747310819965,-223.835829,0.00011792,2]
[361154140,1747310819988,-151.0,0.00011802,2]
[361154141,1747310820014,-151.0,0.00011802,2]
[361154142,1747310820040,-176.233929,0.00011802,2]
[361154143,1747310820068,-217.918722,0.00011802,2]
[361154144,1747310820094,-217.918722,0.00011802,2]
[361154145,1747310820120,-217.918722,0.00011802,2]
[361154146,1747310820146,-217.918722,0.00011802,2]
[361154147,1747310820171,-217.918722,0.00011802,2]
[361154148,1747310820197,-217.918722,0.00011802,2]
[361154149,1747310820223,-290.192382,0.00011802,2]
[361154150,1747310820247,-290.192382,0.00011802,2]
[361154151,1747310820271,-290.192382,0.00011802,2]
[361154152,1747310820300,-290.192382,0.00011802,2]
[361154153,1747310820325,-290.192382,0.00011802,2]
[361154154,1747310820350,-290.192382,0.00011802,2]
[361154155,1747310820374,-151.0,0.00011802,2]
[361154156,1747310820399,-151.0,0.00011802,2]
[361154157,1747310820423,-151.0,0.00011802,2]
[361154158,1747310820448,-812.963722,0.00011802,2]
[361154159,1747310820473,-812.963722,0.00011802,2]
[361154160,1747310820497,-812.963722,0.00011802,2]
[361154161,1747310820522,-812.963722,0.00011802,2]
[361154162,1747310820548,-151.0,0.00011802,2]
[361154163,1747310820571,-295.776649,0.00011802,2]
[361154164,1747310820607,-151.0,0.00011802,2]
[361154165,1747310820634,-151.0,0.00011802,2]
[361154166,1747310820659,-151.0,0.00011802,2]
[361154167,1747310820686,-151.0,0.00011802,2]
[361154168,1747310820716,-153.304826,0.00011803,2]
[361154169,1747310820743,-151.0,0.00011803,2]
[361154170,1747310820770,-151.0,0.00011803,2]
[361154171,1747310820800,-152.307422,0.00011803,2]
[361154172,1747310820825,-158.857446,0.00011803,2]
[361154173,1747310820850,-158.857446,0.00011803,2]
[361154174,1747310820875,-151.0,0.00011803,2]
[361154175,1747310820899,-151.0,0.00011803,2]
[361154176,1747310820923,-201.582375,0.00011803,2]
[361154177,1747310820948,-151.0,0.00011803,2]
[361154178,1747310820973,-151.0,0.00011803,2]
[361154179,1747310820998,-151.0,0.00011803,2]
[361154180,1747310821022,-151.0,0.00011803,2]
[361154181,1747310821050,-151.0,0.00011803,2]
[361154182,1747310821074,-160.522096,0.00011803,2]
[361154183,1747310821099,-217.918722,0.00011803,2]
[361154184,1747310821124,-217.918722,0.00011803,2]
[361154185,1747310821147,-290.192382,0.00011803,2]
[361154186,1747310821176,-290.192382,0.00011803,2]
[361154187,1747310821201,-151.0,0.00011803,2]
[361154188,1747310821225,-151.0,0.00011804,2]
[361154189,1747310821250,-151.0,0.00011804,2]
[361154190,1747310821276,-151.0,0.00011804,2]
[361154191,1747310821303,-152.794755,0.00011804,2]
[361154192,1747310821329,-217.918722,0.00011804,2]
[361154193,1747310821358,-217.918722,0.00011804,2]
[361154194,1747310821384,-290.192382,0.00011804,2]
[361154195,1747310821409,-290.192382,0.00011804,2]
[361154196,1747310821434,-151.0,0.00011805,2]
[361154197,1747310821463,-250.0,0.00011814,2]
[361154198,1747310821489,-1482.1915515,0.00011842,2]
[361154199,1747310821517,-151.0,0.00011847,2]
[361154200,1747310821545,-400.0,0.0001187,2]
[361154201,1747310821571,-400.0,0.0001187,2]
[361154202,1747310821598,-400.0,0.0001187,2]
[361154203,1747310821623,-409.4785293,0.0001187,2]
[361154204,1747310821650,-400.0,0.0001187,2]
[361154205,1747310821677,-2096.19,0.0001187,2]
[361154206,1747310821706,-400.0,0.0001187,2]
[361154207,1747310821733,-400.0,0.0001187,2]
[361154208,1747310821759,-400.0,0.0001187,2]
[361154209,1747310821789,-445.61,0.0001187,2]
[361154210,1747310821815,-400.0,0.0001187,2]
[361154211,1747310821840,-441.54120015,0.0001187,2]
[361154212,1747310821870,-400.0,0.0001187,2]
[361154213,1747310821894,-297.05741416,0.0001187,2]
[361154214,1747310821919,-400.0,0.0001187,2]
[361154215,1747310821944,-249.65895672,0.0001187,2]
[361154216,1747310821969,-466.28,0.0001187,2]
[361154217,1747310821995,-700.14,0.0001187,2]
[361154218,1747310822022,-400.0,0.0001187,2]
[361154219,1747310822049,-400.0,0.0001187,2]
[361154220,1747310822074,-400.0,0.0001187,2]
[361154221,1747310822100,-400.0,0.0001187,2]
[361154222,1747310822126,-400.0,0.0001187,2]
[361154223,1747310822152,-400.0,0.0001187,2]
[361154224,1747310822180,-460.79,0.0001187,2]
[361154225,1747310822207,-250.0,0.0001187,2]
[361154226,1747310822231,-400.0,0.0001187,2]
[361154227,1747310822256,-448.71,0.0001187,2]
[361154228,1747310822281,-400.0,0.0001187,2]
[361154229,1747310822311,-400.0,0.0001187,2]
[361154230,1747310822335,-405.51,0.0001187,2]
[361154231,1747310822360,-564.74,0.0001187,2]
[361154232,1747310822385,-400.0,0.0001187,2]
[361154233,1747310822411,-462.87,0.0001187,2]
[361154234,1747310822439,-400.0,0.0001187,2]
[361154235,1747310822466,-400.0,0.0001187,2]
[361154236,1747310822492,-400.0,0.0001187,2]
[361154237,1747310822518,-330.76,0.0001187,2]
[361154238,1747310822547,-400.0,0.0001187,2]
[361154239,1747310822573,-400.0,0.0001187,2]
[361154240,1747310822601,-534.48694395,0.0001187,2]
[361154241,1747310822631,-317.41,0.0001187,2]
[361154242,1747310822660,-1051.86,0.0001187,2]
[361154243,1747310822689,-400.0,0.0001187,2]
[361154244,1747310822723,-719.81,0.0001187,2]
[361154245,1747310822750,-400.0,0.0001187,2]
[361154246,1747310822776,-455.62,0.0001187,2]
[361154247,1747310822807,-1282.78,0.0001187,2]
[361154248,1747310822834,-151.0,0.0001187,2]
[361154249,1747310822859,-400.0,0.0001187,2]
[361154250,1747310822884,-221.61342717,0.0001187,2]
[361154251,1747310822909,-400.0,0.0001187,2]
[361154252,1747310822935,-406.49,0.0001187,2]
[361154253,1747310822961,-400.0,0.0001187,2]
[361154254,1747310822985,-400.0,0.0001187,2]
[361154255,1747310823011,-446.28,0.0001187,2]
[361154256,1747310823037,-400.0,0.0001187,2]
[361154257,1747310823065,-400.0,0.0001187,2]
[361154258,1747310823091,-435.13,0.0001187,2]
[361154259,1747310823118,-424.49,0.0001187,2]
[361154260,1747310823144,-400.0,0.0001187,2]
[361154261,1747310823172,-571.77,0.0001187,2]
[361154262,1747310823197,-400.0,0.0001187,2]
[361154263,1747310823225,-400.0,0.0001187,2]
[361154264,1747310823252,-400.0,0.0001187,2]
[361154265,1747310823278,-400.0,0.0001187,2]
[361154266,1747310823306,-1003.15,0.0001187,2]
[361154267,1747310823333,-209.36,0.0001187,2]
[361154268,1747310823360,-400.0,0.0001187,2]
[361154269,1747310823388,-400.0,0.0001187,2]
[361154270,1747310823416,-361.77881675,0.0001187,2]
[361154271,1747310823443,-502.74,0.0001187,2]
[361154272,1747310823470,-601.95,0.0001187,2]
[361154273,1747310823498,-350.78975241,0.0001187,2]
[361154274,1747310823524,-400.0,0.0001187,2]
[361154275,1747310823555,-400.0,0.0001187,2]
[361154276,1747310823582,-1091.76,0.0001187,2]
[361154277,1747310823868,-570.05,0.0001187,2]
[361154278,1747310823894,-400.0,0.0001187,2]
[361154279,1747310823919,-490.36,0.0001187,2]
[361154280,1747310823946,-307.54266526,0.0001187,2]
[361154281,1747310825756,-400.0,0.00011596,2]
[361154282,1747310825781,-437.54914359,0.00011596,2]
[361154283,1747310825807,-92.45733474,0.0001187,2]
[361154284,1747310825832,-400.0,0.0001187,2]
[361154285,1747310825856,-892.6,0.0001187,2]
[361154286,1747310825880,-400.0,0.0001187,2]
[361154287,1747310825903,-400.0,0.0001187,2]
[361154288,1747310825926,-400.0,0.0001187,2]
[361154289,1747310825950,-400.0,0.0001187,2]
[361154290,1747310825974,-503.87,0.0001187,2]
[361154291,1747310825998,-590.22,0.0001187,2]
[361154292,1747310826023,-500.0,0.0001187,2]
[361154293,1747310826047,-405.57,0.0001187,2]
[361154294,1747310826071,-2368.21,0.0001187,2]
[361154295,1747310826095,-400.0,0.0001187,2]
[361154296,1747310826119,-406.27,0.0001187,2]
[361154297,1747310826144,-400.0,0.0001187,2]
[361154298,1747310826167,-400.0,0.0001187,2]
[361154299,1747310826193,-400.0,0.0001187,2]
[361154300,1747310826219,-709.86,0.0001187,2]
[361154301,1747310826245,-747.84,0.0001187,2]
[361154302,1747310826281,-151.0,0.0001187,2]
[361154303,1747310826305,-413.98,0.0001187,2]
[361154304,1747310826330,-2795.93,0.0001187,2]
[361154305,1747310826354,-1128.51,0.0001187,2]
[361154306,1747310826377,-1096.86,0.0001187,2]
[361154307,1747310826402,-400.0,0.0001187,2]
[361154308,1747310826427,-400.0,0.0001187,2]
[361154309,1747310826452,-151.0,0.0001187,2]
[361154310,1747310826477,-400.0,0.0001187,2]
[361154311,1747310826503,-953.86,0.0001187,2]
[361154312,1747310826528,-483.22,0.0001187,2]
[361154313,1747310826554,-532.44,0.0001187,2]
[361154314,1747310826579,-400.0,0.0001187,2]
[361154315,1747310826605,-400.0,0.0001187,2]
[361154316,1747310826630,-400.0,0.0001187,2]
[361154317,1747310826655,-400.0,0.0001187,2]
[361154318,1747310826681,-454.69,0.0001187,2]
[361154319,1747310826709,-400.0,0.0001187,2]
[361154320,1747310826734,-400.0,0.0001187,2]
[361154321,1747310826760,-400.0,0.0001187,2]
[361154322,1747310826787,-528.29,0.0001187,2]
[361154323,1747310826813,-400.0,0.0001187,2]
[361154324,1747310826841,-400.0,0.0001187,2]